{"text_format":"1","workbook":"xlsx","n_sheets":7,"sheets":["0. Instructions","1. Description generale","2. Budget","3. Equipements","4. Criteres de selection","5. Cofinancements","Listes"],"not_rendered":{"charts":0,"images":7,"macros":1,"external_links":0,"defined_names":39,"comments":1,"pivot_tables":0},"unopened":[],"bounds":{"document_bytes":16777216,"sheet_cells":100000,"rows_first":2000,"rows_last":500,"rows_between":2000,"halvings":0,"cell_chars":16384,"cell_head_chars":4096},"cells_cut":0,"cells_raw":0,"read":"whole","date_system":"1900"}

{"sheet":"0. Instructions","index":0,"n_rows":23,"n_cols":1,"rows_kept":23,"cut":false,"hidden":false,"merged":[[10,0,10,3],[0,0,3,3],[5,0,5,3],[4,0,4,3],[7,0,7,3],[6,0,6,3],[8,0,8,3],[9,0,9,3],[20,0,20,3],[21,0,21,3],[22,0,22,3],[11,0,11,3],[17,0,17,3],[18,0,18,3],[16,0,16,3],[19,0,19,3],[12,0,12,3],[13,0,13,3],[14,0,14,3],[15,0,15,3]]}
["Note pour remplissage du dossier de candidature"]
[]
[]
[]
["Informations générales"]
["Se référer au site internet du Slime (www.lesslime.fr) pour :\nle descriptif du dispositif, la foire aux questions, les vidéos présentant les visites à domicile, le dossier de candidature et les actualités du dispositif"]
["La collectivité ne doit remplir que les cases jaunes et rouges foncées (menus déroulants). Les cases rouges clair se remplissent automatiquement"]
["Pour l’onglet 1. Description générale"]
["La \"Présentation générale de l’action\" doit être synthétique (3000 caractères maximum)"]
["Pour l’onglet 2. Budget"]
["La collectivité doit contacter le CLER si elle souhaite ajouter des lignes au budget."]
["La collectivité doit sélectionner via les menus déroulants le type de dépense en question. La collectivité peut demander au CLER d'en ajouter, ou à défaut, de laisser la case vide et détailler la dépense dans la case à côté \"détailler dépense si besoin\"."]
["La catégorie \"1. Coordination du dispositif et animation territoriale\" fait référence aux dépenses en lien avec l'animation du réseau Slime, telles que:\n\n- gestion globale et administrative du projet;\n- mobilisation, sensibilisation et formation des donneurs d'alerte et des acteurs relais;\n- coordination d'un comité d'orientation;\n- communication;\n- animation, organisation d'interventions, de réunions;\n- élargissement de son réseau de partenaires;\n- actions pour améliorer l'efficacité de son Slime."]
["La catégorie \"3. Evaluation\" fait référence aux dépenses en lien avec l'évaluation locale du dispositif, telles que:\n\n- organisation et coordination de l'évaluation;\n- réalisation de l'évaluation;\n- communication autour de l'évaluation."]
["La catégorie \"2. Diagnostics socio-techniques et soutien renforcé\" fait référence aux dépenses en lien avec les visites à domicile, telles que: \n\n- coordination;\n- organisation et réalisation des diagnostics sociotechniques;\n- installation des petits équipements;\n- orientation et accompagnement du ménage après la visite. "]
["La catégorie \"4. Formations et accompagnement méthodologique\" fait référence aux dépenses en lien avec les formations proposées et éligibles. Ce co-financement s'élève à 75% des dépenses et n'est pas plafonné. Le co-financement de l'action \"Accompagnement méthodologique Ambassadeur Slime\" pour les collectivités éligibles et l'ayant choisi comme option est, quant à lui, plafonné à 2500€."]
["Dans \"Accompagnement méthodologique Ambassadeur Slime\": cet accompagnement n'est valable qu'en phase de candidature et seule la prestation d'un ambassadeur Slime habilité par le CLER est prise en charge."]
["Pour l’onglet 3. Équipements"]
["La collectivité doit transposer les coûts des équipements dans l'onglet 2.Budget section \"Diagnostics socio-techniques et soutien renforcé\"."]
["Pour l’onglet 4. Critères de sélection"]
["Le remplissage des colonnes B et C fait office d'engagement de la collectivité vis-à-vis des critères de sélection."]
["Contacts"]
["slime@cler.org"]

{"sheet":"1. Description generale","index":1,"n_rows":118,"n_cols":8,"rows_kept":118,"cut":false,"hidden":false,"merged":[[101,0,101,2],[104,0,104,2],[105,0,105,7],[117,0,117,2],[116,0,116,3],[115,0,115,6],[114,0,114,2],[112,0,112,2],[111,0,111,4],[113,0,113,4],[66,3,67,3],[68,3,69,3],[65,0,75,2],[38,0,38,4],[85,4,86,4],[0,1,3,4],[108,0,110,4],[107,0,107,2],[76,0,76,4],[7,3,7,4],[4,3,4,4],[5,3,5,4],[43,0,43,4],[44,0,44,4],[54,0,54,4],[6,3,6,4],[8,3,8,4],[9,3,9,4],[84,3,86,3],[17,3,18,3],[17,4,18,4],[99,0,99,7],[102,0,102,7],[96,0,98,7],[64,0,64,4],[39,0,42,2],[39,3,41,3],[81,0,81,4],[45,0,45,4],[55,0,63,2],[46,0,53,2],[70,3,71,3],[77,0,80,2],[77,3,78,3],[88,3,94,3],[82,0,95,2],[46,3,53,3]]}
[null,"Description générale du dispositif\n\nMerci de ne compléter que les cases jaunes et rouges foncées (menus déroulants)\nLes cases rouges clair se remplissent automatiquement"]
[]
[]
[]
["Collectivité pilotant le Slime (cf critère de sélection 1)","Nom local du dispositif (par ex. Slime CLER…)","Territoire d'action du dispositif Slime","Département"]
[]
["Responsable du dispositif (NOM Prénom)","Adresse email","Numéro de téléphone","Service"]
[]
["Date de début du dispositif (jj/mm/aaaa)","Date de fin du dispositif (jj/mm/aaaa)","Durée de l'action (en mois)","Adresse"]
[null,null,{"$f":"ROUND((B10-A10)*12/365,0)","v":0}]
[]
["Budget total du dispositif local Slime ","Budget de la collectivité éligible au co-financement via le Slime","Participation directe des autres partenaires","Co-financement Slime possible (total)"]
[{"$f":"'2. Budget'!F92+'2. Budget'!M92+'2. Budget'!T92+'2. Budget'!AA92","v":0},{"$f":"'2. Budget'!F74+'2. Budget'!M74+'2. Budget'!T74+'2. Budget'!AA74","v":0},{"$f":"A13-B13","v":0},{"$f":"'5. Cofinancements'!I44","v":{"$error":"#N/A"}}]
[]
["Nombre de ménages sur le territoire d'action",null,null,"Coût par ménage",{"$f":"A13/D37","v":{"$error":"#DIV/0!"}}]
["Densité de population","Supérieure à 50hab/km2",null,"Forfait par ménage moyen",{"$f":"(('5. Cofinancements'!C16+IF(A31=\"-\",0,'5. Cofinancements'!C17)+IF(A32=\"-\",0,'5. Cofinancements'!C18))/(IF(A31=\"-\",1,IF(A32=\"-\",2,3))))","v":300}]
[{"$f":"IF(B16=\"Inférieure à 50hab/km2\",\"faible densité\",IF(B15<300000,\"petit territoire\",\"grand territoire\"))","v":"petit territoire"}]
["Type de territoire","Départemental",null,"Candidature préparée avec le soutien méthodologique d'un \"ambassadeur du Slime\" ?","NON"]
["Age du dispositif ","1ère année"]
[]
["La collectivité souhaite demander une avance (en % du co-financement Slime total)",null,"OUI - 15%",null,{"$f":"D13*VALUE(MID(C21,7,2))/100","v":{"$error":"#N/A"}}]
[]
["1ère année et ambassadeur",null,null,{"$f":"IF(B19=\"1ère année\",IF(E18=\"OUI\",\"OUI\",\"NON\"),\"NON\")","v":"NON"}]
[null,"si première année","si deuxième année","si troisième année ou plus","si première année","si deuxième année","si troisième année ou plus"]
[null,"pourcentage",null,null,"nombre minimal"]
["Année N",{"$f":"IF(A17=\"faible densité\",1,IF(A17=\"petit territoire\",1,IF(A17=\"grand territoire\",\"-\",\"\")))","v":1},{"$f":"IF(A17=\"faible densité\",1,IF(A17=\"petit territoire\",1.5,IF(A17=\"grand territoire\",\"-\",\"\")))","v":1.5},{"$f":"IF(A17=\"faible densité\",1,IF(A17=\"petit territoire\",2,IF(A17=\"grand territoire\",\"-\",\"\")))","v":2},{"$f":"IF(B26=\"-\",300,B15*(B26/1000))","v":0},{"$f":"IF(C26=\"-\",450,B15*(C26/1000))","v":0},{"$f":"IF(D26=\"-\",450,(IF((B15*(D26/1000))>450,450,B15*(D26/1000))))","v":0}]
["Année N+1",{"$f":"IF(A17=\"faible densité\",1,IF(A17=\"petit territoire\",1.5,IF(A17=\"grand territoire\",\"-\",\"\")))","v":1.5},{"$f":"IF(A17=\"faible densité\",1,IF(A17=\"petit territoire\",2,IF(A17=\"grand territoire\",\"-\",\"\")))","v":2},{"$f":"IF(A17=\"faible densité\",1,IF(A17=\"petit territoire\",2,IF(A17=\"grand territoire\",\"-\",\"\")))","v":2},{"$f":"IF(B27=\"-\",450,B15*(B27/1000))","v":0},{"$f":"IF(C27=\"-\",450,(IF((B15*(C27/1000))>450,450,B15*(C27/1000))))","v":0},{"$f":"IF(D27=\"-\",450,(IF((B15*(D27/1000))>450,450,B15*(D27/1000))))","v":0}]
["Année N+2",{"$f":"IF(A17=\"faible densité\",1,IF(A17=\"petit territoire\",2,IF(A17=\"grand territoire\",\"-\",\"\")))","v":2},{"$f":"IF(A17=\"faible densité\",1,IF(A17=\"petit territoire\",2,IF(A17=\"grand territoire\",\"-\",\"\")))","v":2},{"$f":"IF(A17=\"faible densité\",1,IF(A17=\"petit territoire\",2,IF(A17=\"grand territoire\",\"-\",\"\")))","v":2},{"$f":"IF(B28=\"-\",450,(IF((B15*(B28/1000))>450,450,B15*(B28/1000))))","v":0},{"$f":"IF(C28=\"-\",450,(IF((B15*(C28/1000))>450,450,B15*(C28/1000))))","v":0},{"$f":"IF(D28=\"-\",450,(IF((B15*(D28/1000))>450,450,B15*(D28/1000))))","v":0}]
[null,"pourcentage",null,null,"nombre minimal"]
[{"$f":"IF(A34>YEAR(B10),\"-\",A34)","v":1904},{"$f":"B26","v":1},1.5,2,0,0,0]
[{"$f":"IF(A35>YEAR(B10),\"-\",A35)","v":"-"},{"$f":"IF(A31<>\"-\",B27,\"\")","v":""},{"$f":"IF(A31<>\"-\",C27,\"\")","v":""},{"$f":"IF(A31<>\"-\",D27,\"\")","v":""},{"$f":"IF(A31<>\"-\",E27,\"\")","v":""},{"$f":"IF(A31<>\"-\",F27,\"\")","v":""},{"$f":"IF(A31<>\"-\",G27,\"\")","v":""}]
[{"$f":"IF(A36>YEAR(B10),\"-\",A36)","v":"-"},{"$f":"IF(A32<>\"-\",B28,\"\")","v":""},{"$f":"IF(A32<>\"-\",C28,\"\")","v":""},{"$f":"IF(A32<>\"-\",D28,\"\")","v":""},{"$f":"IF(A32<>\"-\",E28,\"\")","v":""},{"$f":"IF(A32<>\"-\",F28,\"\")","v":""},{"$f":"IF(A32<>\"-\",G28,\"\")","v":""}]
[null,"Nombre minimal théorique de ménages (en ‰)","Nombre minimal théorique de ménages","Nombre de ménages qui recevront une visite","% du nombre minimal de ménage","Co-financement Slime (par an)"]
[{"$f":"YEAR(A10)","v":1904},{"$f":"IF(B19=\"1ère année\",B30,IF(B19=\"2ème année\",C30,IF(B19=\"3ème année ou plus\",D30,\"\")))","v":1},{"$f":"IF(B19=\"1ère année\",E30,IF(B19=\"2ème année\",F30,IF(B19=\"3ème année ou plus\",G30,\"\")))","v":0},null,{"$f":"D34/C34","v":{"$error":"#DIV/0!"}},{"$f":"'5. Cofinancements'!I41","v":{"$error":"#N/A"}}]
[{"$f":"YEAR(A10)+1","v":1905},{"$f":"IF(B19=\"1ère année\",B31,IF(B19=\"2ème année\",C31,IF(B19=\"3ème année ou plus\",D31,\"\")))","v":""},{"$f":"IF(B19=\"1ère année\",E31,IF(B19=\"2ème année\",F31,IF(B19=\"3ème année ou plus\",G31,\"\")))","v":""},null,{"$f":"D35/C35","v":{"$error":"#VALUE!"}},{"$f":"'5. Cofinancements'!I42","v":0}]
[{"$f":"YEAR(A10)+2","v":1906},{"$f":"IF(B19=\"1ère année\",B32,IF(B19=\"2ème année\",C32,IF(B19=\"3ème année ou plus\",D32,\"\")))","v":""},{"$f":"IF(B19=\"1ère année\",E32,IF(B19=\"2ème année\",F32,IF(B19=\"3ème année ou plus\",G32,\"\")))","v":""},null,{"$f":"D36/C36","v":{"$error":"#VALUE!"}},{"$f":"'5. Cofinancements'!I43","v":0}]
["Sur la période",null,{"$f":"SUM(C34:C36)","v":0},{"$f":"SUM(D34:D36)","v":0},{"$f":"D37/C37","v":{"$error":"#DIV/0!"}}]
[]
["Présentation générale de l'action\nVous pouvez accompagner le dossier de candidature d'un schéma explicatif"]
[null,null,null,"Dans quel.s outil.s de politique publique le Slime est-il inscrit?"]
[]
[]
[null,null,null,"Type de dossier"]
["Comment est animé/coordonné le dispositif ? (cf critère 6)\nQui assure l'animation générale du dispositif, l'information et la coordination régulière des partenaires concernés ; et selon quelles modalités (instances de gouvernance, fonctionnement et outils utilisés, etc.) ?"]
[]
["Qui sont les publics ciblés par le dispositif ? (cf critère 2)\nPréciser les critères retenus par la collectivité pour qualifier la précarité énergétique et ajouter au dossier la fiche de repérage / navette."]
[null,null,null,"Quels sont les critères retenus pour caractériser la précarité énergétique ?","Revenus tres modestes (seuils ANAH)"]
[]
[]
[]
[]
[]
[]
[]
["Comment et par qui sont repérés les ménages ?  (cf critère 3)\nIdentification des donneurs d'alerte / fréquence et modalité des réunions d'information des donneurs d'alerte / modalités de repérage"]
[null,null,null,"Mobilisation des travailleurs sociaux de la collectivité pilote"]
[null,null,null,"Mobilisation des travailleurs sociaux d'une collectivité partenaire (CCAS, Département …)"]
[null,null,null,"Réseau de donneurs d'alertes externe à la collectivité"]
[null,null,null,"Traitement des dossiers FSL"]
[null,null,null,"Campagne de visites systématiques sur des zones identifiées"]
[null,null,null,"Utilisation des fichiers d'impayés "]
[null,null,null,"Campagne de communication à destination des ménages"]
[null,null,null,"Animations et sensibilisation à la précarité énergétique"]
[null,null,null,"Autres démarches d'identification, à préciser"]
["Qui réalise les visites à domicile ? \nprofil et nombre de personnes en charge de réaliser les visites"]
[null,null,null,"Qui réalise les visites à domicile ?"]
[null,null,null,"Modalités de la visite",{"$f":"A30","v":1904},{"$f":"A31","v":"-"},{"$f":"A32","v":"-"}]
[]
[null,null,null,"Profil du chargé de visite",{"$f":"A30","v":1904},{"$f":"A31","v":"-"},{"$f":"A32","v":"-"}]
[]
[null,null,null,"Profil du second chargé de visite (si binôme)",{"$f":"A30","v":1904},{"$f":"A31","v":"-"},{"$f":"A32","v":"-"}]
[]
[null,null,null,"Besoin de formation au diagnostic sociotechnique "]
[null,null,null,"Nombre de chargés de visite à former"]
[null,null,null,"Formation pour habilitation électrique"]
[null,null,null,"Nombre de chargés de visite mobilisés pour le Slime"]
["Comment se déroule une visite à domicile ? \ndéroulement / durée / contenu du kit (cf critères 4 et 5)"]
[null,null,null,"Nombre de visites par ménage",{"$f":"A30","v":1904},{"$f":"A31","v":"-"},{"$f":"A32","v":"-"}]
[]
[null,null,null,"Durée totale de la/des visites"]
[null,null,null,"Qui installe les équipements d'économies d'énergie ?"]
["Détailler le circuit et les modalités d'orientation et de soutien renforcé des ménages\nComment sont repérées les structures proposant des solutions ? (cf critère 7)\nL'orientation se fait-elle pendant ou après la visite / par qui ? / vers quelles structures ? / vers quel type de solutions ? / avec quels outils ?\nUn comité technique ou comité d'orientation est-il prévu pour passer en revue les dossiers ?\nQuelles sont les modalités de soutien renforcé / quels services et partenaires réalisent chacun de ces accompagnements / quels besoins en formation ? ( cf critère 8)"]
[null,null,null,"Quand le ménage est-il orienté ?"]
[null,null,null,"Quel est le principal format de remise du rapport de visite ?"]
[null,null,null,"Qui est le principal décideur pour  l'orientation des ménages ?"]
[]
[]
[null,null,null,null,null,"Détailler l'orientation","Détailler le soutien renforcé en lien avec l'orientation","Partenaire en charge du soutien renforcé"]
[null,null,null,"Quelles sont les modalités d'orientation et de soutien renforcé prévues par le dispositif ? \n-\nQuels services/partenaires réalisent chacun de ces accompagnements ?\n?\n\n Liste non exhaustive :\n- Mise en place d'une action de médiation bailleur-locataire sur les questions énergétiques dans le logement,\n- Aide aux démarches administratives : pour changer de logement, remplir une déclaration de revenus, changer de fournisseur/de contrat d'énergie, faire une demande de prêt ou d'échelonnement d'une dette d'énergie...\n- Suivi régulier de la mise en œuvre des orientations post-visite : rappels téléphoniques du ménage/des acteurs relais, nouvelle(s) visite(s)...\n- Aide à la gestion budgétaire, \n- Suivi et analyse des consommations d'énergie sur un temps long,\n- Etc. "]
[]
[]
[]
[]
[]
[]
[null,null,null,"Besoin de formation à la \"médiation bailleur-locataire\""]
["Options complémentaires (intégrées dans le forfait)"]
[]
[]
["Soutien renforcé (au-delà des 20%)\nDétailler les actions mises en place si différentes de celles prévues dans l'objectif socle de 20% des ménages"]
[null,null,null,null,{"$f":"A30","v":1904},{"$f":"A31","v":"-"},{"$f":"A32","v":"-"}]
[null,null,null,"Prévu par le dispositif ?","NON","NON","NON","Il est prévu qu’au moins 20% des ménages bénéficiaires du Slime bénéficient d’un soutien renforcé vers la mise en œuvre des solutions. Une bonification de 50€ est accordée à chaque tranche supplémentaire de 10% de ménages bénéficiant d'un soutien renforcé."]
["Forte articulation avec un dispositif de type FSATME\nDétailler les actions mises en place"]
[null,null,null,null,{"$f":"A30","v":1904},{"$f":"A31","v":"-"},{"$f":"A32","v":"-"}]
[null,null,null,"Prévu par le dispositif ?","NON","NON","NON","La collectivité développe des dispositifs correspondant aux besoins identifiés dans le cadre du Slime et qui bénéficieront à au moins 20% des ménages bénéficiaires (exemple : Fond social d’aide aux travaux de maitrise d’énergie, fond d’aide au remplacement d’équipements…). "]
["Suivi à N+1\nDétailler les actions mises en place"]
[null,null,null,null,{"$f":"A30","v":1904},{"$f":"A31","v":"-"},{"$f":"A32","v":"-"}]
[null,null,null,"Prévu par le dispositif ?","NON","NON","NON","La collectivité prévoit un nouveau RDV à N+1 avec au moins 15% des ménages afin d'identifier de nouvelles actions à mettre en place."]
["Options complémentaires (par action)"]
[]
[]
["Animation territoriale\nDétailler les actions mises en place"]
[null,null,null,"Prévu par le dispositif ?","NON","La collectivité développe et consolide un réseau de partenaires susceptibles d’identifier et d’accompagner les ménages en situation de précarité énergétique.\n\nLa collectivité assure la coordination d'un comité dédié à l'orientation des ménages.\n\nCette tranche n'est accessible qu'aux collectivités engagées dans un dispositif pluriannuel (minimum 18 mois)"]
["Evaluation locale\nDétailler les actions mises en place"]
[null,null,null,"Prévu par le dispositif ?","NON","La collectivité s'engage à mettre en place une démarche d'évaluation locale de leur dispositif."]
["Réalisation des médiations"]
[null,null,null,null,{"$f":"A30","v":1904},{"$f":"A31","v":"-"},{"$f":"A32","v":"-"}]
[null,null,null,"Prévu par le dispositif ?","NON","NON","NON","La collectivité réalise des actions de médiation avec au moins 5% des ménages. La collectivité choisissant cette option complémentaire doit respecter les engagements présentés en annexe 16 de la convention."]

{"sheet":"2. Budget","index":2,"n_rows":92,"n_cols":20,"rows_kept":92,"cut":false,"hidden":false,"merged":[[91,7,91,11],[77,14,77,18],[78,16,78,19],[79,16,79,19],[80,16,80,19],[81,16,81,19],[82,14,82,18],[83,16,83,19],[84,16,84,19],[85,16,85,19],[86,16,86,19],[87,16,87,19],[88,16,88,19],[91,14,91,18],[84,9,84,12],[85,9,85,12],[86,9,86,12],[87,9,87,12],[88,9,88,12],[79,2,79,5],[80,2,80,5],[81,2,81,5],[82,0,82,4],[83,2,83,5],[80,9,80,12],[88,2,88,5],[8,12,12,12],[14,12,18,12],[74,0,74,4],[74,7,74,11],[76,0,76,5],[76,7,76,12],[69,7,69,11],[73,7,73,11],[58,12,62,12],[64,12,68,12],[42,7,42,11],[44,12,48,12],[50,12,54,12],[19,7,19,11],[21,12,30,12],[32,12,41,12],[8,19,12,19],[14,19,18,19],[19,14,19,18],[21,19,30,19],[32,19,41,19],[0,7,3,12],[4,7,4,12],[5,7,5,11],[6,7,6,11],[0,14,3,19],[4,14,4,19],[5,14,5,18],[6,14,6,18],[74,14,74,18],[76,14,76,19],[77,7,77,11],[78,9,78,12],[79,9,79,12],[73,14,73,18],[42,14,42,18],[44,19,48,19],[50,19,54,19],[55,14,55,18],[56,14,56,18],[58,5,62,5],[64,5,68,5],[58,19,62,19],[64,19,68,19],[69,14,69,18],[50,5,54,5],[44,5,48,5],[14,5,18,5],[55,7,55,11],[56,7,56,11],[32,5,41,5],[0,0,3,5],[4,0,4,5],[5,0,5,4],[6,0,6,4],[19,0,19,4],[8,5,12,5],[91,0,91,4],[81,9,81,12],[82,7,82,11],[83,9,83,12],[21,5,30,5],[84,2,84,5],[85,2,85,5],[86,2,86,5],[87,2,87,5],[77,0,77,4],[78,2,78,5],[42,0,42,4],[55,0,55,4],[56,0,56,4],[69,0,69,4],[73,0,73,4]]}
["Budget previsionnel\n\nMerci de ne completer que les cases jaunes et rouges foncees (menus deroulants)\nLes cases rouges clair se remplissent automatiquement",null,null,null,null,null,null,"Budget previsionnel\n\nMerci de ne completer que les cases jaunes et rouges foncees (menus deroulants)\nLes cases rouges clair se remplissent automatiquement",null,null,null,null,null,null,"Budget previsionnel\n\nMerci de ne completer que les cases jaunes et rouges foncees (menus deroulants)\nLes cases rouges clair se remplissent automatiquement"]
[]
[]
[]
[{"$f":"CONCATENATE(\"DEPENSES PREVISIONNELLES DE LA COLLECTIVITE ANNEE \",'1. Description generale'!A30)","v":"DEPENSES PREVISIONNELLES DE LA COLLECTIVITE ANNEE 1904"},null,null,null,null,null,null,{"$f":"CONCATENATE(\"DEPENSES PREVISIONNELLES DE LA COLLECTIVITE ANNEE \",'1. Description generale'!A31)","v":"DEPENSES PREVISIONNELLES DE LA COLLECTIVITE ANNEE -"},null,null,null,null,null,null,{"$f":"CONCATENATE(\"DEPENSES PREVISIONNELLES DE LA COLLECTIVITE ANNEE \",'1. Description generale'!A32)","v":"DEPENSES PREVISIONNELLES DE LA COLLECTIVITE ANNEE -"}]
[{"$f":" \"Activites \" & '1. Description generale'!A30","v":"Activites 1904"},null,null,null,null,{"$f":"\"Depenses previsionnelles (€) \"& '1. Description generale'!A30","v":"Depenses previsionnelles (€) 1904"},null,{"$f":" \"Activites \" & '1. Description generale'!A31","v":"Activites -"},null,null,null,null,{"$f":"\"Depenses previsionnelles (€) \"& '1. Description generale'!A31","v":"Depenses previsionnelles (€) -"},null,{"$f":" \"Activites \" & '1. Description generale'!A32","v":"Activites -"},null,null,null,null,{"$f":"\"Depenses previsionnelles (€) \"& '1. Description generale'!A32","v":"Depenses previsionnelles (€) -"}]
["1. Coordination du dispositif et animation territoriale",null,null,null,null,{"$f":"F9+F15","v":0},null,"1. Coordination du dispositif et animation territoriale",null,null,null,null,{"$f":"M9+M15","v":0},null,"1. Coordination du dispositif et animation territoriale",null,null,null,null,{"$f":"T9+T15","v":0}]
["Depenses d'exploitation (frais directs)","detailler depense si besoin","Coût jour ou unitaire","Nombre (jours, km, kits, etc)","Montant (€)",null,null,"Depenses d'exploitation (frais directs)","detailler depense si besoin","Coût jour ou unitaire","Nombre (jours, km, kits, etc)","Montant (€)",null,null,"Depenses d'exploitation (frais directs)","detailler depense si besoin","Coût jour ou unitaire","Nombre (jours, km, kits, etc)","Montant (€)"]
[null,null,null,null,{"$f":"C9*D9","v":0},{"$f":"SUM(E9:E13)","v":0},null,null,null,null,null,{"$f":"J9*K9","v":0},{"$f":"SUM(L9:L13)","v":0},null,null,null,null,null,{"$f":"Q9*R9","v":0},{"$f":"SUM(S9:S13)","v":0}]
[null,null,null,null,{"$f":"C10*D10","v":0},null,null,null,null,null,null,{"$f":"J10*K10","v":0},null,null,null,null,null,null,{"$f":"Q10*R10","v":0}]
[null,null,null,null,0,null,null,null,null,null,null,0,null,null,null,null,null,null,0]
[null,null,null,null,0,null,null,null,null,null,null,0,null,null,null,null,null,null,0]
[null,null,null,null,0,null,null,null,null,null,null,0,null,null,null,null,null,null,0]
["Depenses de personnel (moyens humains)","detailler depense si besoin","Coût jour ou unitaire","Nombre (jours, km, kits, etc)","Montant (€)",null,null,"Depenses de personnel (moyens humains)","detailler depense si besoin","Coût jour ou unitaire","Nombre (jours, km, kits, etc)","Montant (€)",null,null,"Depenses de personnel (moyens humains)","detailler depense si besoin","Coût jour ou unitaire","Nombre (jours, km, kits, etc)","Montant (€)"]
[null,null,null,null,0,{"$f":"SUM(E15:E19)","v":0},null,null,null,null,null,{"$f":"J15*K15","v":0},{"$f":"SUM(L15:L19)","v":0},null,null,null,null,null,{"$f":"Q15*R15","v":0},{"$f":"SUM(S15:S19)","v":0}]
[null,null,null,null,0,null,null,null,null,null,null,0,null,null,null,null,null,null,0]
[null,null,null,null,0,null,null,null,null,null,null,0,null,null,null,null,null,null,0]
[null,null,null,null,0,null,null,null,null,null,null,0,null,null,null,null,null,null,0]
[null,null,null,null,0,null,null,null,null,null,null,0,null,null,null,null,null,null,0]
["2. Diagnostics socio-techniques et soutien renforce",null,null,null,null,{"$f":"F22+F33","v":0},null,"2. Diagnostics socio-techniques et soutien renforce",null,null,null,null,{"$f":"M22+M33","v":0},null,"2. Diagnostics socio-techniques et soutien renforce",null,null,null,null,{"$f":"T22+T33","v":0}]
["Depenses d'exploitation (frais directs)","detailler depense si besoin","Coût jour ou unitaire","Nombre (jours, km, kits, etc)","Montant (€)",null,null,"Depenses d'exploitation (frais directs)","detailler depense si besoin","Coût jour ou unitaire","Nombre (jours, km, kits, etc)","Montant (€)",null,null,"Depenses d'exploitation (frais directs)","detailler depense si besoin","Coût jour ou unitaire","Nombre (jours, km, kits, etc)","Montant (€)"]
[null,null,null,null,0,{"$f":"SUM(E22:E31)","v":0},null,null,null,null,null,{"$f":"J22*K22","v":0},{"$f":"SUM(L22:L31)","v":0},null,null,null,null,null,{"$f":"Q22*R22","v":0},{"$f":"SUM(S22:S31)","v":0}]
[null,null,null,null,0,null,null,null,null,null,null,0,null,null,null,null,null,null,0]
[null,null,null,null,0,null,null,null,null,null,null,0,null,null,null,null,null,null,0]
[null,null,null,null,0,null,null,null,null,null,null,0,null,null,null,null,null,null,0]
[null,null,null,null,0,null,null,null,null,null,null,0,null,null,null,null,null,null,0]
[null,null,null,null,0,null,null,null,null,null,null,0,null,null,null,null,null,null,0]
[null,null,null,null,0,null,null,null,null,null,null,0,null,null,null,null,null,null,0]
[null,null,null,null,0,null,null,null,null,null,null,0,null,null,null,null,null,null,0]
[null,null,null,null,0,null,null,null,null,null,null,0,null,null,null,null,null,null,0]
[null,null,null,null,0,null,null,null,null,null,null,0,null,null,null,null,null,null,0]
["Depenses de personnel (moyens humains)","detailler depense si besoin","Coût jour ou unitaire","Nombre (jours, km, kits, etc)","Montant (€)",null,null,"Depenses de personnel (moyens humains)","detailler depense si besoin","Coût jour ou unitaire","Nombre (jours, km, kits, etc)","Montant (€)",null,null,"Depenses de personnel (moyens humains)","detailler depense si besoin","Coût jour ou unitaire","Nombre (jours, km, kits, etc)","Montant (€)"]
[null,null,null,null,{"$f":"C33*D33","v":0},{"$f":"SUM(E33:E42)","v":0},null,null,null,null,null,{"$f":"J33*K33","v":0},{"$f":"SUM(L33:L42)","v":0},null,null,null,null,null,{"$f":"Q33*R33","v":0},{"$f":"SUM(S33:S42)","v":0}]
[null,null,null,null,{"$f":"C34*D34","v":0},null,null,null,null,null,null,0,null,null,null,null,null,null,0]
[null,null,null,null,0,null,null,null,null,null,null,0,null,null,null,null,null,null,0]
[null,null,null,null,0,null,null,null,null,null,null,0,null,null,null,null,null,null,0]
[null,null,null,null,0,null,null,null,null,null,null,0,null,null,null,null,null,null,0]
[null,null,null,null,0,null,null,null,null,null,null,0,null,null,null,null,null,null,0]
[null,null,null,null,0,null,null,null,null,null,null,0,null,null,null,null,null,null,0]
[null,null,null,null,0,null,null,null,null,null,null,0,null,null,null,null,null,null,0]
[null,null,null,null,0,null,null,null,null,null,null,0,null,null,null,null,null,null,0]
[null,null,null,null,0,null,null,null,null,null,null,0,null,null,null,null,null,null,0]
["3. Evaluation",null,null,null,null,{"$f":"F45+F51","v":0},null,"3. Evaluation",null,null,null,null,{"$f":"M45+M51","v":0},null,"3. Evaluation",null,null,null,null,{"$f":"T45+T51","v":0}]
["Depenses d'exploitation (frais directs)","detailler depense si besoin","Coût jour ou unitaire","Nombre (jours, km, kits, etc)","Montant (€)",null,null,"Depenses d'exploitation (frais directs)","detailler depense si besoin","Coût jour ou unitaire","Nombre (jours, km, kits, etc)","Montant (€)",null,null,"Depenses d'exploitation (frais directs)","detailler depense si besoin","Coût jour ou unitaire","Nombre (jours, km, kits, etc)","Montant (€)"]
[null,null,null,null,0,{"$f":"SUM(E45:E49)","v":0},null,null,null,null,null,{"$f":"J45*K45","v":0},{"$f":"SUM(L45:L49)","v":0},null,null,null,null,null,{"$f":"Q45*R45","v":0},{"$f":"SUM(S45:S49)","v":0}]
[null,null,null,null,0,null,null,null,null,null,null,0,null,null,null,null,null,null,0]
[null,null,null,null,0,null,null,null,null,null,null,0,null,null,null,null,null,null,0]
[null,null,null,null,0,null,null,null,null,null,null,0,null,null,null,null,null,null,0]
[null,null,null,null,0,null,null,null,null,null,null,0,null,null,null,null,null,null,0]
["Depenses de personnel (moyens humains)","detailler depense si besoin","Coût jour ou unitaire","Nombre (jours, km, kits, etc)","Montant (€)",null,null,"Depenses de personnel (moyens humains)","detailler depense si besoin","Coût jour ou unitaire","Nombre (jours, km, kits, etc)","Montant (€)",null,null,"Depenses de personnel (moyens humains)","detailler depense si besoin","Coût jour ou unitaire","Nombre (jours, km, kits, etc)","Montant (€)"]
[null,null,null,null,0,{"$f":"SUM(E51:E55)","v":0},null,null,null,null,null,{"$f":"J51*K51","v":0},{"$f":"SUM(L51:L55)","v":0},null,null,null,null,null,{"$f":"Q51*R51","v":0},{"$f":"SUM(S51:S55)","v":0}]
[null,null,null,null,0,null,null,null,null,null,null,0,null,null,null,null,null,null,0]
[null,null,null,null,0,null,null,null,null,null,null,0,null,null,null,null,null,null,0]
[null,null,null,null,0,null,null,null,null,null,null,0,null,null,null,null,null,null,0]
[null,null,null,null,0,null,null,null,null,null,null,0,null,null,null,null,null,null,0]
["4. Formations et accompagnement methodologique",null,null,null,null,{"$f":"F57+F70","v":0},null,"4. Formations et accompagnement methodologique",null,null,null,null,{"$f":"M57+M70","v":0},null,"4. Formations et accompagnement methodologique",null,null,null,null,{"$f":"T57+T70","v":0}]
["4.1 Formations",null,null,null,null,{"$f":"F59+F65","v":0},null,"4.1 Formations",null,null,null,null,{"$f":"M59+M65","v":0},null,"4.1 Formations",null,null,null,null,{"$f":"T59+T65","v":0}]
["Depenses d'exploitation (frais directs)","detailler depense si besoin","Coût jour ou unitaire","Nombre (jours, km, kits, etc)","Montant (€)",null,null,"Depenses d'exploitation (frais directs)","detailler depense si besoin","Coût jour ou unitaire","Nombre (jours, km, kits, etc)","Montant (€)",null,null,"Depenses d'exploitation (frais directs)","detailler depense si besoin","Coût jour ou unitaire","Nombre (jours, km, kits, etc)","Montant (€)"]
[null,null,null,null,0,{"$f":"SUM(E59:E63)","v":0},null,null,null,null,null,{"$f":"J59*K59","v":0},{"$f":"SUM(L59:L63)","v":0},null,null,null,null,null,{"$f":"Q59*R59","v":0},{"$f":"SUM(S59:S63)","v":0}]
[null,null,null,null,0,null,null,null,null,null,null,0,null,null,null,null,null,null,0]
[null,null,null,null,0,null,null,null,null,null,null,0,null,null,null,null,null,null,0]
[null,null,null,null,0,null,null,null,null,null,null,0,null,null,null,null,null,null,0]
[null,null,null,null,0,null,null,null,null,null,null,0,null,null,null,null,null,null,0]
["Depenses de personnel (moyens humains)","detailler depense si besoin","Coût jour ou unitaire","Nombre (jours, km, kits, etc)","Montant (€)",null,null,"Depenses de personnel (moyens humains)","detailler depense si besoin","Coût jour ou unitaire","Nombre (jours, km, kits, etc)","Montant (€)",null,null,"Depenses de personnel (moyens humains)","detailler depense si besoin","Coût jour ou unitaire","Nombre (jours, km, kits, etc)","Montant (€)"]
[null,null,null,null,0,{"$f":"SUM(E65:E69)","v":0},null,null,null,null,null,{"$f":"J65*K65","v":0},{"$f":"SUM(L65:L69)","v":0},null,null,null,null,null,{"$f":"Q65*R65","v":0},{"$f":"SUM(S65:S69)","v":0}]
[null,null,null,null,0,null,null,null,null,null,null,0,null,null,null,null,null,null,0]
[null,null,null,null,0,null,null,null,null,null,null,0,null,null,null,null,null,null,0]
[null,null,null,null,0,null,null,null,null,null,null,0,null,null,null,null,null,null,0]
[null,null,null,null,0,null,null,null,null,null,null,0,null,null,null,null,null,null,0]
["4.2 Accompagnement methodologique",null,null,null,null,{"$f":"F72","v":0},null,"4.2 Accompagnement methodologique",null,null,null,null,{"$f":"M72","v":0},null,"4.2 Accompagnement methodologique",null,null,null,null,{"$f":"T72","v":0}]
["Depenses d'exploitation (frais directs)","detailler depense si besoin","Coût jour ou unitaire","Nombre (jours, km, kits, etc)","Montant (€)",null,null,"Depenses d'exploitation (frais directs)","detailler depense si besoin","Coût jour ou unitaire","Nombre (jours, km, kits, etc)","Montant (€)",null,null,"Depenses d'exploitation (frais directs)","detailler depense si besoin","Coût jour ou unitaire","Nombre (jours, km, kits, etc)","Montant (€)"]
[null,null,null,null,{"$f":"C72*D72","v":0},{"$f":"E72","v":0},null,null,null,null,null,{"$f":"J72*K72","v":0},{"$f":"L72","v":0},null,null,null,null,null,{"$f":"Q72*R72","v":0},{"$f":"S72","v":0}]
[]
["TOTAL ANNUEL DES DEPENSES PREVISIONNELLES DE LA COLLECTIVITE pour son Slime",null,null,null,null,{"$f":"F7+F20+F43+F56","v":0},null,"TOTAL ANNUEL DES DEPENSES PREVISIONNELLES DE LA COLLECTIVITE pour son Slime",null,null,null,null,{"$f":"M7+M20+M43+M56","v":0},null,"TOTAL ANNUEL DES DEPENSES PREVISIONNELLES DE LA COLLECTIVITE pour son Slime",null,null,null,null,{"$f":"T7+T20+T43+T56","v":0}]
["ASSIETTE DES DEPENSES PREVISIONNELLES ANNUELLES DE LA COLLECTIVITE ELIGIBLES AU FINANCEMENT Slime",null,null,null,null,{"$f":"(F9+F22+F45+F59+F72)+(F15+F33+F51+F65)*1.25","v":0},null,"ASSIETTE DES DEPENSES PREVISIONNELLES ANNUELLES DE LA COLLECTIVITE ELIGIBLES AU FINANCEMENT Slime",null,null,null,null,{"$f":"(M9+M22+M45+M59+M72)+(M15+M33+M51+M65)*1.25","v":0},null,"ASSIETTE DES DEPENSES PREVISIONNELLES ANNUELLES DE LA COLLECTIVITE ELIGIBLES AU FINANCEMENT Slime",null,null,null,null,{"$f":"(T9+T22+T45+T59+T72)+(T15+T33+T51+T65)*1.25","v":0}]
[]
[{"$f":"CONCATENATE(\"PARTENAIRES FINANCIERS DU DISPOSITIF EN \",'1. Description generale'!A30)","v":"PARTENAIRES FINANCIERS DU DISPOSITIF EN 1904"},null,null,null,null,null,null,{"$f":"CONCATENATE(\"PARTENAIRES FINANCIERS DU DISPOSITIF EN \",'1. Description generale'!A31)","v":"PARTENAIRES FINANCIERS DU DISPOSITIF EN -"},null,null,null,null,null,null,{"$f":"CONCATENATE(\"PARTENAIRES FINANCIERS DU DISPOSITIF EN \",'1. Description generale'!A32)","v":"PARTENAIRES FINANCIERS DU DISPOSITIF EN -"}]
[{"$f":"CONCATENATE(\"CO-FINANCEMENTS DIRECTS À LA COLLECTIVITÉ (intégrés dans les dépenses prévisionnelles de la collectivité)\")","v":"CO-FINANCEMENTS DIRECTS À LA COLLECTIVITÉ (intégrés dans les dépenses prévisionnelles de la collectivité)"},null,null,null,null,null,null,{"$f":"CONCATENATE(\"CO-FINANCEMENTS DIRECTS À LA COLLECTIVITÉ (intégrés dans les dépenses prévisionnelles de la collectivité)\")","v":"CO-FINANCEMENTS DIRECTS À LA COLLECTIVITÉ (intégrés dans les dépenses prévisionnelles de la collectivité)"},null,null,null,null,null,null,{"$f":"CONCATENATE(\"CO-FINANCEMENTS DIRECTS À LA COLLECTIVITÉ (intégrés dans les dépenses prévisionnelles de la collectivité)\")","v":"CO-FINANCEMENTS DIRECTS À LA COLLECTIVITÉ (intégrés dans les dépenses prévisionnelles de la collectivité)"}]
[" Partenaire financier\t","Montant de la participation","Activité concernée (si spécifiquement fléchée)"]
[]
[]
[]
["AUTRES COFINANCEMENTS (dépenses non engagées par la collectivité et non éligibles au financement Slime)",null,null,null,null,null,null,"AUTRES COFINANCEMENTS (dépenses non engagées par la collectivité et non éligibles au financement Slime)",null,null,null,null,null,null,"AUTRES COFINANCEMENTS (dépenses non engagées par la collectivité et non éligibles au financement Slime)"]
[" Partenaire financier\t","Montant de la participation","Bénéficiaire",null,null,null,null," Partenaire financier\t","Montant de la participation","Bénéficiaire",null,null,null,null," Partenaire financier\t","Montant de la participation","Bénéficiaire"]
["Partenaire financier 1",null,null,null,null,null,null,"Partenaire financier 1",null,null,null,null,null,null,"Partenaire financier 1"]
["Partenaire financier 2",null,null,null,null,null,null,"Partenaire financier 2",null,null,null,null,null,null,"Partenaire financier 2"]
["Partenaire financier 3",null,null,null,null,null,null,"Partenaire financier 3",null,null,null,null,null,null,"Partenaire financier 3"]
["Partenaire financier 4",null,null,null,null,null,null,"Partenaire financier 4",null,null,null,null,null,null,"Partenaire financier 4"]
["Partenaire financier 5",null,null,null,null,null,null,"Partenaire financier 5",null,null,null,null,null,null,"Partenaire financier 5"]
["Total autres cofinancements",{"$f":"SUM(B85:B89)","v":0},null,null,null,null,null,"Total autres cofinancements",{"$f":"SUM(I85:I89)","v":0},null,null,null,null,null,"Total autres cofinancements",{"$f":"SUM(P85:P89)","v":0}]
[]
[{"$f":"CONCATENATE(\"BUDGET TOTAL DU DISPOSITIF EN \",'1. Description generale'!A30)","v":"BUDGET TOTAL DU DISPOSITIF EN 1904"},null,null,null,null,{"$f":"F74+B90","v":0},null,{"$f":"CONCATENATE(\"BUDGET TOTAL DU DISPOSITIF EN \",'1. Description generale'!A31)","v":"BUDGET TOTAL DU DISPOSITIF EN -"},null,null,null,null,{"$f":"M74+I90","v":0},null,{"$f":"CONCATENATE(\"BUDGET TOTAL DU DISPOSITIF EN \",'1. Description generale'!A32)","v":"BUDGET TOTAL DU DISPOSITIF EN -"},null,null,null,null,{"$f":"T74+P90","v":0}]

{"sheet":"3. Equipements","index":3,"n_rows":53,"n_cols":19,"rows_kept":53,"cut":false,"hidden":false,"merged":[[31,0,31,8],[32,0,32,3],[32,5,32,8],[0,1,3,8],[0,11,3,18],[27,1,30,8],[5,0,5,3],[5,5,5,8],[4,0,4,8],[4,10,4,18],[5,10,5,13],[5,15,5,18]]}
[null,"Budget prévisionnel - petits équipements\n\nMerci de ne compléter que les cases jaunes\nLes cases rouges clair se remplissent automatiquement",null,null,null,null,null,null,null,null,null,"Budget prévisionnel - petits équipements\n\nMerci de ne compléter que les cases jaunes\nLes cases rouges clair se remplissent automatiquement"]
[]
[]
[]
[{"$f":"CONCATENATE(\"ANNEE \",'1. Description generale'!A30)","v":"ANNEE 1904"},null,null,null,null,null,null,null,null,null,{"$f":"CONCATENATE(\"ANNEE \",'1. Description generale'!A31)","v":"ANNEE -"}]
["Liste des équipements d'économie d'énergie installés chez les ménages pendant la visite à domicile",null,null,null,null,"Liste des équipements de mesure utilisés pendant les visites à domicile",null,null,null,null,"Liste des équipements d'économie d'énergie installés chez les ménages pendant la visite à domicile",null,null,null,null,"Liste des équipements de mesure utilisés pendant les visites à domicile"]
["Équipement d'économies d'énergie","Coût unitaire","Nombre","Total",null,"Équipements de mesure","Coût unitaire","Nombre","Total",null,"Équipement d'économies d'énergie","Coût unitaire","Nombre","Total",null,"Équipements de mesure","Coût unitaire","Nombre","Total"]
["Lampe de classe A pour la métropole",null,null,{"$f":"B8*C8","v":0},null,"Thermomètre",null,null,{"$f":"G8*H8","v":0},null,"Lampe de classe A pour la métropole",null,null,{"$f":"L8*M8","v":0},null,"Thermomètre",null,null,{"$f":"Q8*R8","v":0}]
["Coupe-veille automatique",null,null,{"$f":"B9*C9","v":0},null,"Thermomètre de frigo",null,null,{"$f":"G9*H9","v":0},null,"Coupe-veille automatique",null,null,{"$f":"L9*M9","v":0},null,"Thermomètre de frigo",null,null,{"$f":"Q9*R9","v":0}]
["Lampe à LED pour l'éclairage d'accentuation",null,null,0,null,"Hygromètre",null,null,0,null,"Lampe à LED pour l'éclairage d'accentuation",null,null,0,null,"Hygromètre",null,null,0]
["Isolation d’un réseau hydraulique de chauffage",null,null,0,null,"Mètre laser",null,null,0,null,"Isolation d’un réseau hydraulique de chauffage",null,null,0,null,"Mètre laser",null,null,0]
["Robinet thermostatique",null,null,0,null,"Débitmètre",null,null,0,null,"Robinet thermostatique",null,null,0,null,"Débitmètre",null,null,0]
["Programmateur d'intermittence centralisé pour un chauffage à combustible",null,null,0,null,"Wattmètre",null,null,0,null,"Programmateur d'intermittence centralisé pour un chauffage à combustible",null,null,0,null,"Wattmètre",null,null,0]
["Programmateur d'intermittence centralisé pour un chauffage électrique",null,null,0,null,"Autre équipement de mesure (préciser)",null,null,0,null,"Programmateur d'intermittence centralisé pour un chauffage électrique",null,null,0,null,"Autre équipement de mesure (préciser)",null,null,0]
["Reducteur de débit pour robinet",null,null,0,null,"Autre équipement de mesure (préciser)",null,null,0,null,"Reducteur de débit pour robinet",null,null,0,null,"Autre équipement de mesure (préciser)",null,null,0]
["Douchette économe",null,null,0,null,"Autre équipement de mesure (préciser)",null,null,0,null,"Douchette économe",null,null,0,null,"Autre équipement de mesure (préciser)",null,null,0]
["Réflecteur de chaleur",null,null,{"$f":"B17*C17","v":0},null,"TOTAL",null,null,{"$f":"SUM(I8:I16)","v":0},null,"Réflecteur de chaleur",null,null,{"$f":"L17*M17","v":0},null,"TOTAL",null,null,{"$f":"SUM(S8:S16)","v":0}]
["Joint de fenêtre",null,null,{"$f":"B18*C18","v":0},null,null,null,null,null,null,"Joint de fenêtre",null,null,{"$f":"L18*M18","v":0}]
["Bas de porte",null,null,0,null,null,null,null,null,null,"Bas de porte",null,null,0]
["Doubles-rideaux épais",null,null,0,null,null,null,null,null,null,"Doubles-rideaux épais",null,null,0]
["Autre équipement d'économie d'énergie (préciser)",null,null,0,null,null,null,null,null,null,"Autre équipement d'économie d'énergie (préciser)",null,null,0]
["Autre équipement d'économie d'énergie (préciser)",null,null,0,null,null,null,null,null,null,"Autre équipement d'économie d'énergie (préciser)",null,null,0]
["Autre équipement d'économie d'énergie (préciser)",null,null,0,null,null,null,null,null,null,"Autre équipement d'économie d'énergie (préciser)",null,null,0]
["Autre équipement d'économie d'énergie (préciser)",null,null,0,null,null,null,null,null,null,"Autre équipement d'économie d'énergie (préciser)",null,null,0]
["Autre équipement d'économie d'énergie (préciser)",null,null,0,null,null,null,null,null,null,"Autre équipement d'économie d'énergie (préciser)",null,null,0]
["TOTAL",null,null,{"$f":"SUM(D8:D25)","v":0},null,null,null,null,null,null,"TOTAL",null,null,{"$f":"SUM(N8:N25)","v":0}]
[]
[null,"Budget prévisionnel - petits équipements\n\nMerci de ne compléter que les cases jaunes\nLes cases rouges clair se remplissent automatiquement"]
[]
[]
[]
[{"$f":"CONCATENATE(\"ANNEE \",'1. Description generale'!A32)","v":"ANNEE -"}]
["Liste des équipements d'économie d'énergie installés chez les ménages pendant la visite à domicile",null,null,null,null,"Liste des équipements de mesure utilisés pendant les visites à domicile"]
["Équipement d'économies d'énergie","Coût unitaire","Nombre","Total",null,"Équipements de mesure","Coût unitaire","Nombre","Total"]
["Lampe de classe A pour la métropole",null,null,{"$f":"B35*C35","v":0},null,"Thermomètre",null,null,{"$f":"G35*H35","v":0}]
["Coupe-veille automatique",null,null,{"$f":"B36*C36","v":0},null,"Thermomètre de frigo",null,null,{"$f":"G36*H36","v":0}]
["Lampe à LED pour l'éclairage d'accentuation",null,null,0,null,"Hygromètre",null,null,0]
["Isolation d’un réseau hydraulique de chauffage",null,null,0,null,"Mètre laser",null,null,0]
["Robinet thermostatique",null,null,0,null,"Débitmètre",null,null,0]
["Programmateur d'intermittence centralisé pour un chauffage à combustible",null,null,0,null,"Wattmètre",null,null,0]
["Programmateur d'intermittence centralisé pour un chauffage électrique",null,null,0,null,"Autre équipement de mesure (préciser)",null,null,0]
["Reducteur de débit pour robinet",null,null,0,null,"Autre équipement de mesure (préciser)",null,null,0]
["Douchette économe",null,null,0,null,"Autre équipement de mesure (préciser)",null,null,0]
["Réflecteur de chaleur",null,null,{"$f":"B44*C44","v":0},null,"TOTAL",null,null,{"$f":"SUM(I35:I43)","v":0}]
["Joint de fenêtre",null,null,{"$f":"B45*C45","v":0}]
["Bas de porte",null,null,0]
["Doubles-rideaux épais",null,null,0]
["Autre équipement d'économie d'énergie (préciser)",null,null,0]
["Autre équipement d'économie d'énergie (préciser)",null,null,0]
["Autre équipement d'économie d'énergie (préciser)",null,null,0]
["Autre équipement d'économie d'énergie (préciser)",null,null,0]
["Autre équipement d'économie d'énergie (préciser)",null,null,0]
["TOTAL",null,null,{"$f":"SUM(D35:D52)","v":0}]

{"sheet":"4. Criteres de selection","index":4,"n_rows":25,"n_cols":3,"rows_kept":25,"cut":false,"hidden":false,"merged":[[17,0,19,0],[0,0,3,2]]}
["Critères de sélection\n\nMerci de ne compléter que les cases jaunes et rouges foncées (menus déroulants)\nLes cases rouges clair se remplissent automatiquement\n\nLe remplissage des colonnes B et C fait office d'engagement de la collectivité vis-à-vis des critères de sélection."]
[]
[]
[]
["Critères de sélection","Vérifié","Commentaires pour le jury de sélection (si besoin)"]
["1. Le dispositif est piloté et financé ou co-financé par une ou des collectivités locales, leur groupement et établissement ou un groupement d'intérêt public (GIP)."]
["2. Le dispositif cible les ménages en situation de précarité énergétique, telle que définie dans la loi n° 90-449 du 31 mai 1990 visant à la mise en oeuvre du droit au logement, et quel que soit le statut d'occupation du logement."]
["3. Le dispositif prévoit une ou plusieurs démarche(s) d’identification des publics cibles, qu'il est en mesure d'expliciter. Il s'agit de : "]
["Ø     Traiter le stock de dossiers FSL qui constitue un premier gisement de cas à visiter systématiquement, notamment les ménages qui ont bénéficié plusieurs fois d’aides pour impayés d’énergie. "]
["Ø     Mener une campagne de visites systématiques dans les zones où se concentrent les situations de précarité énergétique."]
["Ø     Intervenir au cas par cas, suite à un signalement par des « donneurs d’alertes » (travailleurs sociaux, intervenants médicaux…) ou par les ménages eux-mêmes."]
["Ø     Autre démarche d'identification (à détailler)"]
["4. Le dispositif comporte a minima une visite du ménage dans son logement, qui vise à établir avec la famille un diagnostic socio-technique de sa situation.  Cette visite ne pré-suppose pas de travaux. Elle est d'abord destinée à identifier les situations de précarité énergétique, et qualifier la situation du ménage. "]
["5. Le dispositif prévoit l’installation durant la visite, de petits équipements peu onéreux et permettant rapidement des économies et/ou l’amélioration du confort. Ces équipements peuvent concerner à la fois l’énergie et l’eau (ampoules basse consommation, multiprise avec interrupteur, joint de fenêtre, survitrage, aérateur de robinet, réducteur de débit…). "]
["6. En amont des visites, le dispositif prévoit et organise l’information et la coordination régulière des partenaires concernés, notamment pour les donneurs d’alerte et relais locaux à même de faire « remonter » des ménages susceptibles de bénéficier d’une visite à domicile."]
["7. Après la réalisation des visites, le dispositif prévoit les outils de liaison et l'organisation nécessaires pour assurer, chaque fois qu'ils pourraient être éligibles, la réorientation des ménages détectés via le Slime vers les dispositifs locaux et/ou nationaux de lutte contre la précarité énergétique mobilisables sur le territoire (notamment le programme Habiter Mieux)"]
["8. Le dispositif prévoit et détaille les modalités de soutien renforcé pour au moins 20% des ménages bénéficiaires du Slime, après la réalisation des visites et la réorientation des ménages vers des dispositifs adaptés à leur situation."]
["Un objectif minimal de 50 ménages par an est fixé pour toutes les collectivités\n\n9. Les objectifs des visites à domicile correspondent à :\nØ    Pour les territoires d'action (département, ville, EPCI, territoire expérimental circonscrit) de moins de 300 000 ménages :\nau moins 1/1000 ménage accompagné la première année\nau moins 1,5/1000 ménage accompagné la deuxième année\nau moins 2/1000 ménage accompagné la troisième année*\n*Au-delà de 450 ménages accompagnés la collectivité n’est plus soumise à une obligation\n\nØ    Pour les territoires d'action (département, ville, EPCI, territoire expérimental circonscrit) de plus de 300 000 ménages :\nAu moins 300 ménages accompagnés la première année\nAu moins 450 ménages accompagnés les années suivantes\n\nØ    au moins 1/1000 ménage par an pour les territoires d’action à densité peu élevée quelle que soit l’année de pilotage du Slime :\no\tde plein droit pour les collectivités possédant une densité de population inférieure à 50hab/km2",{"$f":"IF('1. Description generale'!B34=\"-\",'1. Description generale'!C34,'1. Description generale'!B34)","v":1},{"$f":"IF('1. Description generale'!D34=\"\",\"\",\"soit \" & '1. Description generale'!D34 & \" ménages qui recevront une visite\")","v":""}]
[null,{"$f":"IF('1. Description generale'!B35=\"-\",'1. Description generale'!C35,'1. Description generale'!B35)","v":""},{"$f":"IF('1. Description generale'!D35=\"\",\"\",\"soit \" & '1. Description generale'!D34 & \" ménages qui recevront une visite\")","v":""}]
[null,{"$f":"IF('1. Description generale'!B36=\"-\",'1. Description generale'!C36,'1. Description generale'!B36)","v":""},{"$f":"IF('1. Description generale'!D36=\"\",\"\",\"soit \" & '1. Description generale'!D36 & \" ménages qui recevront une visite\")","v":""}]
["10. Le dispositif concerné n'est pas co-financé par l’ADEME, par l'ANAH ou par le SARE."]
["11. La collectivité s’engage à produire un récapitulatif annuel des dépenses liées au programme Slime, et à faire attester ce récapitulatif par :\n\n    le.la responsable dûment habilité.e pour engager légalement la structure;\n    le.la comptable public.que (pour ce qui concerne les dépenses d’exploitation - ou frais directs);\n    le.la responsable dûment habilité.e (DGA, DGS, responsable RH...) pour certifier l'exactitude du temps passé sur le projet pour l’ensemble des agents impliqués."]
["12. La collectivité s’engage à utiliser le logicial SoliDiag, mis à disposition par le CLER, pour le reporting des visites."]
["13. La collectivité s’engage à fournir un bilan annuel au CLER des activités (dépenses réalisées et ménages accompagnés et saisis dans SoliDiag)."]
["14. La collectivité s’engage à faire signer une fiche RGPD à chaque ménage bénéficiaire du dispositif et à conserver cette fiche qui attestera de la visite en cas d'audit."]

{"sheet":"5. Cofinancements","index":5,"n_rows":44,"n_cols":9,"rows_kept":44,"cut":false,"hidden":false,"merged":[[13,6,14,6],[43,0,43,7],[0,0,3,8],[40,0,40,7],[41,0,41,7],[42,0,42,7],[33,1,33,2],[36,3,37,3],[32,0,32,8],[25,1,27,1],[19,0,20,8],[13,8,14,8],[21,0,21,1],[13,2,14,2],[13,3,14,3],[13,4,14,4],[0,9,43,9],[4,0,4,8],[23,0,24,0],[26,0,27,0],[28,0,30,1],[22,1,24,1],[13,0,17,1],[6,1,6,2],[6,3,6,4],[6,5,6,6],[5,1,5,6],[33,3,34,3],[33,4,34,4],[35,7,36,7],[13,5,14,5],[13,7,14,7]]}
["Cofinancements"]
[]
[]
[]
["Réalisation des visites (forfait)"]
["Base",300]
[null,{"$f":"'1. Description generale'!A30","v":1904},null,{"$f":"'1. Description generale'!A31","v":"-"},null,{"$f":"'1. Description generale'!A32","v":"-"}]
["DST réalisé en deux visites ou en binôme",{"$f":"IF('1. Description generale'!E68=\"En binôme\",\"OUI\",IF('1. Description generale'!E79=2,\"OUI\",IF('1. Description generale'!E79=\"Plus\",\"OUI\",\"NON\")))","v":"NON"},100,{"$f":"IF('1. Description generale'!F68=\"En binôme\",\"OUI\",IF('1. Description generale'!F79=2,\"OUI\",IF('1. Description generale'!F79=\"Plus\",\"OUI\",\"NON\")))","v":"NON"},100,{"$f":"IF('1. Description generale'!G68=\"En binôme\",\"OUI\",IF('1. Description generale'!G79=2,\"OUI\",IF('1. Description generale'!G79=\"Plus\",\"OUI\",\"NON\")))","v":"NON"},100]
["Profil \"expert\"",{"$f":"IF('1. Description generale'!E70=\"Conseiller énergie\",\"OUI\",IF('1. Description generale'!E70=\"Travailleur social\",\"OUI\",IF('1. Description generale'!E70=\"Conseiller habitat\",\"OUI\",\"NON\")))","v":"NON"},100,{"$f":"IF('1. Description generale'!F70=\"Conseiller énergie\",\"OUI\",IF('1. Description generale'!F70=\"Travailleur social\",\"OUI\",IF('1. Description generale'!F70=\"Conseiller habitat\",\"OUI\",\"NON\")))","v":"NON"},100,{"$f":"IF('1. Description generale'!G70=\"Conseiller énergie\",\"OUI\",IF('1. Description generale'!G70=\"Travailleur social\",\"OUI\",IF('1. Description generale'!G70=\"Conseiller habitat\",\"OUI\",\"NON\")))","v":"NON"},100]
["Soutien renforcé (au-dela des 20% minimum)",{"$f":"IF('1. Description generale'!E102<>\"NON\",\"OUI\",\"NON\")","v":"NON"},{"$f":"IF('1. Description generale'!E102<>\"NON\",(MID('1. Description generale'!E102,7,2)*50/10),0)","v":0},{"$f":"IF('1. Description generale'!F102<>\"NON\",\"OUI\",\"NON\")","v":"NON"},{"$f":"IF('1. Description generale'!F102<>\"NON\",(MID('1. Description generale'!F102,7,2)*50/10),0)","v":0},{"$f":"IF('1. Description generale'!G102<>\"NON\",\"OUI\",\"NON\")","v":"NON"},{"$f":"IF('1. Description generale'!G102<>\"NON\",(MID('1. Description generale'!G102,7,2)*50/10),0)","v":0}]
["Forte articulation avec des dispositifs de type FSATME",{"$f":"'1. Description generale'!E105","v":"NON"},50,{"$f":"'1. Description generale'!F105","v":"NON"},50,{"$f":"'1. Description generale'!G105","v":"NON"},50]
["Suivi N+1",{"$f":"'1. Description generale'!E108","v":"NON"},50,{"$f":"'1. Description generale'!F108","v":"NON"},50,{"$f":"'1. Description generale'!G108","v":"NON"},50]
["Réalisation des médiations",{"$f":"'1. Description generale'!E118","v":"NON"},100,{"$f":"'1. Description generale'!F118","v":"NON"},100,{"$f":"'1. Description generale'!G118","v":"NON"},100]
["Cofinancement (visites) - annuel",null,"Forfait","Années","Plafond","Taux de cofinancement","Dépenses prévisionnelles","Dépenses éligibles","Cofinancements"]
[]
[null,null,{"$f":"B6+(SUMIF(B8:B13,\"OUI\",C8:C13))","v":300},{"$f":"'1. Description generale'!A30","v":1904},{"$f":"C16*'1. Description generale'!D34","v":0},{"$f":"_xlfn.IFS(D16=2025,\"60%\",D16=2026,\"50%\",D16=2027,\"50%\")","v":{"$error":"#N/A"}},{"$f":"'2. Budget'!F20","v":0},{"$f":"'2. Budget'!F22+('2. Budget'!F33)*1.25","v":0},{"$f":"IF(D16=\"-\",0,(IF(E16>(F16*H16),F16*H16,E16)))","v":{"$error":"#N/A"}}]
[null,null,{"$f":"B6+(SUMIF(D8:D13,\"OUI\",E8:E13))","v":300},{"$f":"'1. Description generale'!A31","v":"-"},{"$f":"C17*'1. Description generale'!D35","v":0},{"$f":"_xlfn.IFS(D17=2025,\"60%\",D17=2026,\"50%\",D17=2027,\"50%\")","v":{"$error":"#N/A"}},{"$f":"'2. Budget'!M20","v":0},{"$f":"'2. Budget'!M22+('2. Budget'!M33)*1.25","v":0},{"$f":"IF(D17=\"-\",0,(IF(E17>(F17*H17),F17*H17,E17)))","v":0}]
[null,null,{"$f":"B6+(SUMIF(F8:F13,\"OUI\",G8:G13))","v":300},{"$f":"'1. Description generale'!A32","v":"-"},{"$f":"C18*'1. Description generale'!D36","v":0},{"$f":"_xlfn.IFS(D18=2025,\"60%\",D18=2026,\"50%\",D18=2027,\"50%\")","v":{"$error":"#N/A"}},{"$f":"'2. Budget'!T20","v":0},{"$f":"'2. Budget'!T22+('2. Budget'!T33)*1.25","v":0},{"$f":"IF(D18=\"-\",0,(IF(E18>(F18*H18),F18*H18,E18)))","v":0}]
[null,null,null,null,null,null,null,null,{"$f":"SUM(I16:I18)","v":{"$error":"#N/A"}}]
["Animation territoriale et évaluation"]
[]
[null,null,"Années","Plafond","Taux de cofinancement","Total plafonné","Dépenses prévisionnelles","Dépenses éligibles","Cofinancements"]
["Animation territoriale",{"$f":"IF('1. Description generale'!C10<18,\"NON\",'1. Description generale'!E113)","v":"NON"},{"$f":"'1. Description generale'!A30","v":1904},{"$f":"IF('1. Description generale'!B19=\"1ère année\",50000,IF(C23=2025,25000,35000))","v":50000},{"$f":"_xlfn.IFS(C23=2025,\"60%\",C23=2026,\"50%\",C23=2027,\"50%\")","v":{"$error":"#N/A"}},{"$f":"IF(E23=\"-\",0,D23*E23)","v":{"$error":"#N/A"}},{"$f":"'2. Budget'!F7","v":0},{"$f":"'2. Budget'!F9+('2. Budget'!F15)*1.25","v":0},{"$f":"IF(C23=\"-\",0,IF(H23>D23,F23,E23*H23))","v":{"$error":"#N/A"}}]
["Plafonds\nannée 1 - 50.000€\nannées suivantes - 35.000€",null,{"$f":"'1. Description generale'!A31","v":"-"},{"$f":"IF(C24=\"-\",0,35000)","v":0},{"$f":"_xlfn.IFS(C24=2025,\"60%\",C24=2026,\"50%\",C24=2027,\"50%\")","v":{"$error":"#N/A"}},{"$f":"IF(E24=\"-\",0,D24*E24)","v":{"$error":"#N/A"}},{"$f":"'2. Budget'!M7","v":0},{"$f":"'2. Budget'!M9+('2. Budget'!M15)*1.25","v":0},{"$f":"IF(C24=\"-\",0,IF(H24>D24,F24,E24*H24))","v":0}]
[null,null,{"$f":"'1. Description generale'!A32","v":"-"},{"$f":"IF(C25=\"-\",0,35000)","v":0},{"$f":"_xlfn.IFS(C25=2025,\"60%\",C25=2026,\"50%\",C25=2027,\"50%\")","v":{"$error":"#N/A"}},{"$f":"IF(E25=\"-\",0,D25*E25)","v":{"$error":"#N/A"}},{"$f":"'2. Budget'!T7","v":0},{"$f":"'2. Budget'!T9+('2. Budget'!T15)*1.25","v":0},{"$f":"IF(C25=\"-\",0,IF(H25>D25,F25,E25*H25))","v":0}]
["Evaluation ",{"$f":"'1. Description generale'!E115","v":"NON"},{"$f":"'1. Description generale'!A30","v":1904},{"$f":"IF(C26=\"-\",0,20000)","v":20000},{"$f":"_xlfn.IFS(C26=2025,\"60%\",C26=2026,\"50%\",C26=2027,\"50%\")","v":{"$error":"#N/A"}},{"$f":"IF(E26=\"-\",0,D26*E26)","v":{"$error":"#N/A"}},{"$f":"'2. Budget'!F43","v":0},{"$f":"'2. Budget'!F45+('2. Budget'!F51)*1.25","v":0},{"$error":"#N/A"}]
["Plafonds\n20.000€",null,{"$f":"'1. Description generale'!A31","v":"-"},{"$f":"IF(C27=\"-\",0,20000)","v":0},{"$f":"_xlfn.IFS(C27=2025,\"60%\",C27=2026,\"50%\",C27=2027,\"50%\")","v":{"$error":"#N/A"}},{"$error":"#N/A"},{"$f":"'2. Budget'!M43","v":0},{"$f":"'2. Budget'!M45+('2. Budget'!M51)*1.25","v":0},0]
[null,null,{"$f":"'1. Description generale'!A32","v":"-"},{"$f":"IF(C28=\"-\",0,20000)","v":0},{"$f":"_xlfn.IFS(C28=2025,\"60%\",C28=2026,\"50%\",C28=2027,\"50%\")","v":{"$error":"#N/A"}},{"$error":"#N/A"},{"$f":"'2. Budget'!T43","v":0},{"$f":"'2. Budget'!T45+('2. Budget'!T51)*1.25","v":0},0]
["Cofinancement (animation territoriale et évaluation) - annuel",null,{"$f":"'1. Description generale'!A30","v":1904},null,null,null,null,null,{"$f":"IF(B23=\"OUI\",I23,0)+IF(B26=\"OUI\",I26,0)","v":0}]
[null,null,{"$f":"'1. Description generale'!A31","v":"-"},null,null,null,null,null,{"$f":"IF(B23=\"OUI\",I24,0)+IF(B26=\"OUI\",I27,0)","v":0}]
[null,null,{"$f":"'1. Description generale'!A32","v":"-"},null,null,null,null,null,{"$f":"IF(B23=\"OUI\",I25,0)+IF(B26=\"OUI\",I28,0)","v":0}]
[null,null,null,null,null,null,null,null,{"$f":"SUM(I29:I31)","v":0}]
["Formations & accompagnement méthodologique - 75%"]
[null,"Formations",null,"Ambassadeur Slime","Co-financements"]
["Années","Dépenses prévisionnelles","Dépenses éligibles"]
[{"$f":"'1. Description generale'!A30","v":1904},{"$f":"'2. Budget'!F57","v":0},{"$f":"'2. Budget'!F59+('2. Budget'!F65)*1.25","v":0},{"$f":"IF(('2. Budget'!F70*0.75)>$H$38,$H$38,'2. Budget'!F70*0.75)","v":0},{"$f":"C36*0.75+D36","v":0},null,null,"Plafond \nambassadeur Slime"]
[{"$f":"'1. Description generale'!A31","v":"-"},{"$f":"'2. Budget'!M57","v":0},{"$f":"'2. Budget'!M59+('2. Budget'!M65)*1.25","v":0},null,{"$f":"C37*0.75","v":0}]
[{"$f":"'1. Description generale'!A32","v":"-"},{"$f":"'2. Budget'!T57","v":0},{"$f":"'2. Budget'!T59+('2. Budget'!T65)*1.25","v":0},null,{"$f":"C38*0.75","v":0},null,null,2500]
[null,null,null,null,{"$f":"SUM(E36:E38)","v":0}]
[]
[{"$f":"\"TOTAUX - année \" & '1. Description generale'!A30","v":"TOTAUX - année 1904"},null,null,null,null,null,null,null,{"$f":"IF('1. Description generale'!$B$18=\"Régional\",IF((I16+I29+E36)>1900000,1900000,(I16+I29+E36)),IF('1. Description generale'!$B$18=\"Départemental\",IF((I16+I29+E36)>800000,800000,(I16+I29+E36)),IF('1. Description generale'!$B$18=\"Métropole\",IF((I16+I29+E36)>800000,800000,(I16+I29+E36)),IF((I16+I29+E36)>400000,400000,(I16+I29+E36)))))","v":{"$error":"#N/A"}}]
[{"$f":"\"TOTAUX - année \" & '1. Description generale'!A31","v":"TOTAUX - année -"},null,null,null,null,null,null,null,{"$f":"IF('1. Description generale'!$B$18=\"Régional\",IF((I17+I30+E37)>1900000,1900000,(I17+I30+E37)),IF('1. Description generale'!$B$18=\"Départemental\",IF((I17+I30+E37)>800000,800000,(I17+I30+E37)),IF('1. Description generale'!$B$18=\"Métropole\",IF((I17+I30+E37)>800000,800000,(I17+I30+E37)),IF((I17+I30+E37)>400000,400000,(I17+I30+E37)))))","v":0}]
[{"$f":"\"TOTAUX - année \" & '1. Description generale'!A32","v":"TOTAUX - année -"},null,null,null,null,null,null,null,{"$f":"IF('1. Description generale'!$B$18=\"Régional\",IF((I18+I31+E38)>1900000,1900000,(I18+I31+E38)),IF('1. Description generale'!$B$18=\"Départemental\",IF((I18+I31+E38)>800000,800000,(I18+I31+E38)),IF('1. Description generale'!$B$18=\"Métropole\",IF((I18+I31+E38)>800000,800000,(I18+I31+E38)),IF((I18+I31+E38)>400000,400000,(I18+I31+E38)))))","v":0}]
["TOTAUX (toute la période)",null,null,null,null,null,null,null,{"$f":"SUM(I41:I43)","v":{"$error":"#N/A"}}]

{"sheet":"Listes","index":6,"n_rows":14,"n_cols":31,"rows_kept":14,"cut":false,"hidden":false,"merged":[]}
["Densité de population","Age du dispositif","Outil de politique publique ","Type de dossier","Critères retenus","Lanceurs d'alerte","Quelle structure réalise les visites ?","Modalités de la visite","Quel est le profil des chargés de visite ?","Quel est le profil des chargés de visite (2ème) ?","Formation DST","Habilitation éléctrique","Nombre de visites par ménage","Installation des équipements","L'orientation se fait…","Quel est le principal format de remise du rapport de visite ? ","Qui décide de l'orientation ?","Options complémenataires","Soutien renforcé supplémentaire","Bénéficiaire","Ambassadeur Slime","Modalités de soutien renforcé","Formation bailleur-locataire","Type de territoire","Quelle structure réalise l'accompagnement renfocé ?","Coordination / Animation territoriale","Diagnostics socio-techniques et soutien renforcé","Evaluation","Formations","Accompagnement méthodologique","Avance"]
["Inférieure à 50hab/km2","1ère année","Actions de maîtrise de la demande d'énergie","Nouveau","Bénéficiaire ou demandeur du FSL énergie ou eau","OUI","Collectivité","Seul","Conseiller énergie","N/A","OUI","Réalisée ",1,"Le chargé de visite","Pendant la première visite","De visu","Le comité de suivi/orientation","NON","NON","Finance directement un partenaire opérationnel","OUI","Accompagnement sur les usages de l'énergie/de l'eau","OUI","Régional","Collectivité","Gestion et suivi administratif","Coordination des visites à domicile","Gestion et suivi administratif ","Frais de formation au diagnostic sociotechnique","Frais d'accompagnement méthodologique par un \"Ambassadeur du Slime\"","NON"]
["Supérieure à 50hab/km2","2ème année","Dispositif d'aides curatives (hors FSL)","Renouvellement","Impayés d'eau et d'énergie récurrents","NON","Partenaire opérationnel","En binôme","Travailleur social","Conseiller énergie","NON","Non réalisée",2,"Le ménage (pendant la visite)","Lors d'une seconde visite","Par téléphone","L'animateur Slime","OUI","OUI - 10% suppl.","Finance directement l'achat d'équipements pour les ménages","NON","Accompagnement social et budgétaire","NON","Départemental","Partenaire opérationnel","Actions de sensibilisation, animation et formation auprès des professionnels","Réalisation des visites à domicile","Réalisation de l'évaluation","Frais de formation à la médiation bailleur-locataire",null,"OUI - 5%"]
[null,"3ème année ou plus","Fonds local d'aide aux travaux",null,"Recours aux tarifs sociaux de l'énergie",null,"Collectivité et partenaire opérationnel","Les deux","Conseiller habitat","Travailleur social",null,null,"1 ou 2","Le ménage et le chargé de visite","Après la dernière visite","Par email","Le chargé de visite",null,"OUI - 20% suppl.","Finance directement un autre poste",null,"Paiement des factures d'énergie/d'eau",null,"Métropole","Collectivité et partenaire opérationnel","Communication","Recrutement des chargés de visites","Coordination et suivi opérationnel de l'évaluation","Habilitation électrique",null,"OUI - 10%"]
[null,null,"FSL (Fonds de solidarité pour le logement)",null,"Restriction / privation",null,null,null,"Emploi aidé","Conseiller habitat",null,null,"Plus",null,null,"Par courrier","Autre décideur, à préciser ci-dessous:",null,"OUI - 30% suppl.",null,null,"Médiation, relation bailleur-locataire",null,"Infra-départemental (EPCI, commune, etc)",null,"Déplacements","Soutien renforcé (hors médiation)","Autre (préciser à droite)",null,null,"OUI - 15%"]
[null,null,"Opération programmée: OPAH, PIG …",null,"Revenus très modestes (seuils ANAH)",null,null,null,"Salarié en insertion par le travail","Emploi aidé",null,null,null,null,null,null,null,null,"OUI - 40% suppl.",null,null,"Travaux & équipements domestiques",null,null,null,"Coordination et suivi opérationnel du dispositif","Déplacements",null,null,null,"OUI - 20%"]
[null,null,"PDALHPD",null,"Sensation de froid",null,null,null,"Volontaire du Service Civique","Salarié en insertion par le travail",null,null,null,null,null,null,null,null,"OUI - 50% suppl.",null,null,"Relogement",null,null,null,"Autre (préciser à droite)","Équipements d'économies d'énergie",null,null,null,"OUI - 25%"]
[null,null,"Plan Climat Air Énergie Territorial",null,"Taux d'effort énergétique > 10%",null,null,null,"Autre","Volontaire du Service Civique",null,null,null,null,null,null,null,null,"OUI - 60% suppl.",null,null,"Autre, à préciser  à droite :",null,null,null,null,"Équipements de mesure mis à disposition des chargés de visite"]
[null,null,"Plan d'action pour l'habitat",null,"Autre critère, à préciser ci-dessous:",null,null,null,null,"Autre",null,null,null,null,null,null,null,null,"OUI - 70% suppl.",null,null,null,null,null,null,null,"Réalisation des médiations"]
[null,null,"Plan territorial de lutte contre la précarité énergétique",null,null,null,null,null,null,null,null,null,null,null,null,null,null,null,"OUI - 80% suppl.",null,null,null,null,null,null,null,"Autre (préciser à droite)"]
[null,null,"Plateforme locale de la rénovation énergétique"]
[null,null,"Politique de la ville"]
[null,null,"TEPOS"]
[null,null,"Autre"]